bitfinex-derivatives/quotes_BNBF0:USTF0_20250112
["timestamp","ask_amount","ask_price","bid_price","bid_amount"]
[1736696869418,0.26451434,695.47,693.71,1.75998065]
[1736696870319,1.50296382,695.48,693.71,1.75998065]
[1736696870320,0.26451097,695.46,693.71,1.75998065]
[1736696870618,0.26451097,695.45,693.71,1.75998065]
[1736696870810,0.26451097,695.44,693.71,1.75998065]
[1736696871011,0.26451097,695.43,693.71,1.75998065]
[1736696871215,0.26451097,695.42,693.71,1.75998065]
[1736696871417,0.26451097,695.41,693.71,1.75998065]
[1736696871620,0.26451097,695.4,693.71,1.75998065]
[1736696871818,0.26451097,695.39,693.71,1.75998065]
[1736696872018,0.26451097,695.38,693.71,1.75998065]
[1736696872213,0.26451097,695.47,693.71,4.74508103]
[1736696872413,0.26451097,695.46,693.72,1.75998065]
[1736696872614,0.26451097,695.45,693.72,1.75998065]
[1736696872816,0.26451097,695.44,693.72,1.75998065]
[1736696873017,0.26451097,695.43,693.72,1.75998065]
[1736696873218,0.26451097,695.42,693.72,1.75998065]
[1736696873418,0.26451097,695.41,693.72,1.75998065]
[1736696873612,0.26451097,695.4,693.72,5.74073028]
[1736696873820,0.26451652,695.39,693.73,2.7556299]
[1736696874015,0.26451652,695.38,693.73,2.7556299]
[1736696874322,0.26451652,695.37,693.73,2.7556299]
[1736696874621,0.26451652,695.36,693.73,2.7556299]
[1736696874824,0.26451652,695.35,693.79,1.28444642]
[1736696875018,0.26451652,695.34,693.79,1.28444642]
[1736696875222,0.26451652,695.33,693.79,1.28444642]
[1736696875416,0.26451652,695.32,693.79,1.28444642]
[1736696875617,0.26451652,695.31,693.79,1.28444642]
[1736696875821,0.26451652,695.3,693.76,2.28009567]
[1736696876023,0.26451652,695.29,693.76,2.28009567]
[1736696876223,0.26451652,695.28,693.76,2.28009567]
[1736696876425,0.26451652,695.27,693.76,2.28009567]
[1736696876625,0.26451652,695.26,693.81,1.28444642]
[1736696876925,0.26451652,695.25,693.81,1.28444642]
[1736696877120,0.26451652,695.24,693.81,1.28444642]
[1736696877318,0.26451652,695.23,693.81,1.28444642]
[1736696877523,1.0768234,695.37,693.81,1.28444642]
[1736696877722,1.0768234,695.35,693.8,1.28444642]
[1736696877922,0.26452007,695.34,693.8,1.28444642]
[1736696878125,1.0768234,695.35,693.8,1.28444642]
[1736696879425,1.50305578,695.38,693.57,1.28444642]
[1736696880218,1.50305578,695.38,693.56,1.28444642]
[1736696881420,1.50305578,695.38,693.58,1.28444642]
[1736696882423,1.50305578,695.38,693.61,1.28444642]
[1736696883025,1.50305578,695.38,693.58,1.28444642]
[1736696883623,0.26452794,695.37,693.58,1.28444642]
[1736696884029,0.26452794,695.37,693.56,1.28444642]
[1736696884327,0.26452794,695.37,693.58,0.28835894]
[1736696885628,1.50305578,695.38,693.58,0.28835894]
[1736696885824,0.26452927,695.37,693.58,0.28835894]
[1736696888432,0.26454092,695.36,693.58,0.28835894]
[1736696888625,0.26454092,695.35,693.58,0.28835894]
[1736696888826,0.26454092,695.34,693.58,0.28835894]
[1736696889126,0.26454092,695.33,693.6,1.28444642]
[1736696889332,0.26454633,695.32,693.62,0.28834232]
[1736696889531,0.26454633,695.31,693.62,0.28834232]
[1736696889831,0.26454633,695.3,693.62,0.28834232]
[1736696890027,0.26454633,695.29,693.62,1.57278874]
[1736696890229,0.26454633,695.28,693.62,1.57278874]
[1736696890427,0.26454633,695.27,693.62,1.57278874]
[1736696890630,0.26454633,695.26,693.62,4.32945512]
[1736696890831,0.26454633,695.25,693.63,2.75666638]
[1736696891031,0.26454633,695.24,693.63,5.73540866]
[1736696891229,1.0768234,695.35,693.65,0.28832984]
[1736696891230,0.26455498,695.23,693.65,0.28832984]
[1736696891430,0.26455498,695.22,693.65,0.28832984]
[1736696891631,0.26455498,695.21,693.65,0.28832984]
[1736696891932,1.0768234,695.35,693.65,0.28832984]
[1736696892132,0.26455369,695.34,693.65,0.28832984]
[1736696892932,0.26455369,695.34,693.65,3.26707212]
[1736696893130,0.26455369,695.34,693.66,1.75915529]
[1736696893334,0.26455369,695.34,693.68,0.28831737]
[1736696895028,0.26455369,695.34,693.68,3.04543015]
[1736696895232,0.26455369,695.34,693.69,1.75915529]
[1736696895432,0.28763321,695.33,693.68,0.28831737]
[1736696895735,1.0768234,695.24,693.68,1.57276379]
[1736696895936,0.26455369,695.23,693.68,1.57276379]
[1736696896730,0.26455369,695.23,693.68,4.32987657]
[1736696896935,0.26455369,695.23,693.7,1.28444642]
[1736696897135,0.26455369,695.22,693.71,0.28830491]
[1736696897330,0.26455369,695.21,693.71,2.0474602]
[1736696897635,0.26455369,695.2,693.71,6.02415997]
[1736696897834,0.26455369,695.19,693.72,2.75711278]
[1736696898029,0.26455369,695.18,693.72,2.75711278]
[1736696898231,0.26455369,695.17,693.72,2.75711278]
[1736696898534,0.26455369,695.16,693.72,2.75711278]
[1736696898728,0.26455369,695.15,693.72,2.75711278]
[1736696898933,0.26455369,695.14,693.72,2.75711278]
[1736696899136,0.26455369,695.13,693.72,2.75711278]
[1736696899437,0.26456725,695.12,693.72,2.75711278]
[1736696899634,0.26456725,695.11,693.72,2.75711278]
[1736696899834,0.26456725,695.1,693.73,2.97874228]
[1736696900028,1.0768234,695.25,693.74,1.75915529]
[1736696900229,0.2645702,695.24,693.74,1.75915529]
[1736696900930,1.50333715,695.23,693.74,1.75915529]
[1736696901133,0.2645702,695.22,693.74,1.75915529]
[1736696901436,0.2645702,695.22,693.71,0.28830491]
[1736696901936,0.26456756,695.21,693.71,0.28830491]
[1736696902135,1.50333715,695.23,693.71,0.28830491]
[1736696902136,0.26456756,695.2,693.71,0.28830491]
[1736696902330,0.26456756,695.19,693.71,0.28830491]
[1736696902530,0.26456756,695.18,693.71,0.28830491]
[1736696902732,0.26456756,695.17,693.71,0.28830491]
[1736696902931,0.26456756,695.16,693.71,0.28830491]
[1736696903133,0.26456756,695.15,693.71,0.28830491]
[1736696903334,0.26456756,695.14,693.71,0.28830491]
[1736696903534,0.26456756,695.13,693.71,0.28830491]
[1736696903733,1.50333715,695.23,693.71,0.28830491]
[1736696903938,0.2645615,695.22,693.71,0.28830491]
[1736696904635,0.2645635,695.21,693.71,0.28830491]
[1736696904835,0.2645635,695.2,693.71,0.28830491]
[1736696905035,0.2645635,695.19,693.71,0.28830491]
[1736696905237,0.2645635,695.18,693.71,0.28830491]
[1736696905437,1.50333715,695.23,693.71,0.28830491]
[1736696905638,0.26456468,695.22,693.71,0.28830491]
[1736696907438,0.26456263,695.21,693.71,0.28830491]
[1736696907639,0.26456263,695.2,693.71,0.28830491]
[1736696907834,0.26456263,695.19,693.71,0.28830491]
[1736696908039,1.50333715,695.23,693.71,0.28830491]
[1736696908040,0.26456263,695.18,693.71,0.28830491]
[1736696908237,1.50333715,695.23,693.71,0.28830491]
[1736696908543,0.2645803,695.22,693.71,0.28830491]
[1736696912841,0.26457064,695.21,693.71,0.28830491]
[1736696913046,0.26457219,695.2,693.71,0.28830491]
[1736696913541,0.26457437,695.19,693.71,0.28830491]
[1736696913747,0.26457437,695.18,693.71,0.28830491]
[1736696914049,0.26457437,695.17,693.71,0.28830491]
[1736696914344,0.26457437,695.16,693.71,0.28830491]
[1736696914547,0.26457437,695.15,693.71,0.28830491]
[1736696914747,0.26457437,695.14,693.71,0.28830491]
[1736696914944,0.26457437,695.13,693.71,0.28830491]
[1736696915148,0.26457437,695.12,693.71,0.28830491]
[1736696915448,0.26457437,695.11,693.71,0.28830491]
[1736696915647,0.26457437,695.2,693.71,0.28830491]
[1736696915842,0.26457437,695.19,693.71,0.28830491]
[1736696916046,0.26457437,695.18,693.71,0.28830491]
[1736696916349,0.26457992,695.17,693.71,0.28830491]
[1736696916544,0.26457992,695.16,693.71,0.28830491]
[1736696916744,0.26457992,695.15,693.71,0.28830491]
[1736696916942,0.26457992,695.14,693.71,0.28830491]
[1736696917147,1.0768234,695.19,693.71,0.28830491]
[1736696917148,0.26457992,695.13,693.71,0.28830491]
[1736696917349,0.26457992,695.12,693.71,0.28830491]
[1736696917543,0.26457992,695.11,693.71,0.28830491]
[1736696917750,0.26457992,695.1,693.71,0.28830491]
[1736696917948,1.0768234,695.2,693.71,2.0510552]
[1736696918150,0.26457321,695.19,693.71,2.0510552]
[1736696918450,0.26457511,695.18,693.72,1.28444642]
[1736696918651,0.26457511,695.18,693.73,0.28829659]
[1736696919749,0.26457511,695.17,693.73,0.28829659]
[1736696919946,0.26457511,695.16,693.73,0.28829659]
[1736696920145,0.26457511,695.15,693.73,0.28829659]
[1736696920452,0.26457511,695.14,693.73,0.28829659]
[1736696920751,1.0768234,695.21,693.73,0.28829659]
[1736696920950,0.26457566,695.2,693.73,0.28829659]
[1736696921150,0.26457566,695.19,693.73,0.28829659]
[1736696921352,0.26457566,695.18,693.73,0.28829659]
[1736696921557,0.26457566,695.17,693.73,0.28829659]
[1736696921754,1.0768234,695.22,693.73,0.28829659]
[1736696921955,0.26457442,695.21,693.73,0.28829659]
[1736696922452,1.34139782,695.21,693.73,0.28829659]
[1736696922757,0.26457442,695.2,693.73,0.28829659]
[1736696923357,1.34139782,695.2,693.73,0.28829659]
[1736696923558,0.26457442,695.19,693.73,0.28829659]
[1736696923957,0.26457663,695.18,693.73,0.28829659]
[1736696926462,1.0768234,695.16,693.73,0.28829659]
[1736696926760,0.26458177,695.15,693.73,0.28829659]
[1736696927661,0.26458177,695.14,693.73,0.28829659]
[1736696927856,0.26457904,695.13,693.73,0.28829659]
[1736696928061,1.0768234,695.17,693.73,0.28829659]
[1736696928362,1.50333715,695.23,693.73,0.28829659]
[1736696928363,0.26457885,695.16,693.73,0.28829659]
[1736696928562,0.26457885,695.15,693.73,0.28829659]
[1736696928862,0.26457885,695.14,693.73,0.28829659]
[1736696929061,1.0768234,695.11,693.74,1.28444642]
[1736696929264,0.26458045,695.1,693.75,0.28828828]
[1736696929862,0.26458045,695.1,693.75,1.5727347]
[1736696930064,0.26457993,695.09,693.75,1.5727347]
[1736696930364,1.0768234,695.11,693.75,1.5727347]
[1736696930566,0.26457834,695.1,693.75,1.5727347]
[1736696930963,0.26457834,695.1,693.76,1.28444642]
[1736696931165,0.26457834,695.09,693.77,0.28827997]
[1736696931361,1.0768234,695.12,693.77,0.28827997]
[1736696931563,0.26458175,695.11,693.77,0.28827997]
[1736696932161,0.26457916,695.1,693.77,0.28827997]
[1736696932364,1.0768234,695.12,693.77,0.28827997]
[1736696932567,0.26458029,695.11,693.77,0.28827997]
[1736696932765,0.26458029,695.11,693.77,4.55146867]
[1736696932965,0.26458029,695.11,693.78,1.76345806]
[1736696933166,0.26458029,695.11,693.79,0.28827166]
[1736696933961,1.0768234,695.12,693.79,0.28827166]
[1736696934668,1.0768234,695.15,693.79,0.28827166]
[1736696934869,0.26457911,695.14,693.79,0.28827166]
[1736696936970,1.34140251,695.14,693.79,0.28827166]
[1736696937167,0.26457911,695.13,693.79,0.28827166]
[1736696937568,0.26458297,695.12,693.79,0.28827166]
[1736696937768,0.26458297,695.11,693.79,0.28827166]
[1736696937969,0.26458297,695.1,693.79,0.28827166]
[1736696938169,1.0768234,695.14,693.79,0.28827166]
[1736696938473,1.34140296,695.13,693.79,0.28827166]
[1736696938669,0.26457956,695.12,693.79,0.28827166]
[1736696939264,1.34140296,695.12,693.79,0.28827166]
[1736696939470,1.0768234,695.12,693.79,0.28827166]
[1736696940370,1.0768234,695.27,693.79,0.28827166]
[1736696940570,0.26454553,695.26,693.79,0.28827166]
[1736696940871,1.0768234,695.27,693.79,0.28827166]
[1736696941371,1.0768234,695.32,693.79,0.28827166]
[1736696941573,0.2645518,695.31,693.79,0.28827166]
[1736696942172,0.26455665,695.3,693.79,0.28827166]
[1736696942473,0.26455665,695.29,693.79,0.28827166]
[1736696942771,1.0768234,695.32,693.79,0.28827166]
[1736696942975,0.26454896,695.31,693.79,0.28827166]
[1736696943373,0.26454896,695.3,693.79,0.28827166]
[1736696943573,0.26454896,695.29,693.79,0.28827166]
[1736696943873,0.26454896,695.28,693.79,0.28827166]
[1736696944074,2.58013349,695.35,693.79,0.28827166]
[1736696944268,0.26455107,695.32,693.79,0.28827166]
[1736696944776,0.26455158,695.31,693.79,0.28827166]
[1736696944976,0.26455158,695.3,693.79,0.28827166]
[1736696945175,0.26455158,695.29,693.79,0.28827166]
[1736696945476,0.26455158,695.28,693.79,0.28827166]
[1736696945671,0.26455147,695.32,693.79,0.28827166]
[1736696945873,0.26455147,695.31,693.79,0.28827166]
[1736696946073,1.0768234,695.34,693.79,0.28827166]
[1736696946074,0.26455147,695.3,693.79,0.28827166]
[1736696946275,0.26455147,695.29,693.79,0.28827166]
[1736696946574,0.26455147,695.28,693.79,0.28827166]
[1736696946778,1.0768234,695.34,693.79,0.28827166]
[1736696946980,1.50331009,695.35,693.79,0.28827166]
[1736696946981,0.2645515,695.32,693.79,0.28827166]
[1736696949877,1.0768234,695.2,693.79,0.28827166]
[1736696950176,0.2645515,695.19,693.79,0.28827166]
[1736696950378,1.0768234,695.2,693.79,0.28827166]
[1736696950575,0.2645797,695.19,693.79,0.28827166]
[1736696950775,1.07844684,695.05,693.79,0.28827166]
[1736696951472,1.07844684,695.02,693.79,0.28827166]
[1736696952475,1.07844684,695.01,693.79,0.28827166]
[1736696953278,1.07844684,695.02,693.79,0.28827166]
[1736696954080,1.07844684,695.0,693.79,0.28827166]
[1736696959084,1.07844684,694.96,693.79,0.28827166]
[1736696959782,1.07844684,695.01,693.79,0.28827166]
[1736696962787,1.07844684,695.02,693.79,0.28827166]
[1736696963689,1.07844684,695.03,693.79,0.28827166]
[1736696966191,1.07844684,695.1,693.79,0.28827166]
[1736696968886,1.50346163,695.22,693.79,0.28827166]
[1736696968887,1.07844684,695.11,693.79,0.28827166]
[1736696969490,1.07844684,695.08,693.79,0.28827166]
[1736696970487,1.07844684,695.09,693.79,0.28827166]
[1736696972095,1.07844684,695.1,693.79,0.28827166]
[1736696972794,1.07844684,695.08,693.79,0.28827166]
[1736696973690,1.07844684,695.09,693.79,0.28827166]
[1736696974793,1.07844684,695.1,693.79,0.28827166]
[1736696974992,0.26458504,695.09,693.79,0.28827166]
[1736696975496,1.07844684,695.1,693.79,0.28827166]
[1736696975796,0.26458323,695.09,693.79,0.28827166]
[1736696975994,1.07844684,695.0,693.79,0.28827166]
[1736696976794,1.07844684,695.01,693.79,0.28827166]
[1736696977591,1.07844684,695.0,693.79,0.28827166]
[1736696978494,1.07844684,694.99,693.79,0.28827166]
[1736696979293,1.07844684,694.98,693.79,0.28827166]
[1736696980096,1.07844684,694.96,693.79,0.28827166]
[1736696982499,1.07844684,694.93,693.79,0.28827166]
[1736696983700,1.07844684,694.9,693.79,0.28827166]
[1736696984697,1.07844684,694.87,693.79,0.28827166]
[1736696985397,1.07844684,694.92,693.79,0.28827166]
[1736696986400,1.07844684,694.9,693.79,0.28827166]
[1736696987301,1.07844684,694.93,693.79,0.28827166]
[1736696988105,1.07844684,694.92,693.79,0.28827166]
[1736696988901,1.07844684,694.93,693.79,0.28827166]
[1736696990999,1.07844684,694.96,693.79,0.28827166]
[1736696991599,1.07844684,694.94,693.79,0.28827166]
[1736696994406,1.07844684,694.95,693.79,0.28827166]
[1736696995304,1.07844684,694.91,693.79,0.28827166]
[1736696996010,1.07844684,694.93,693.79,0.28827166]
[1736696996905,1.07844684,694.94,693.79,0.28827166]
[1736696997502,1.07844684,694.93,693.79,0.28827166]
[1736696999308,1.07844684,694.94,693.79,0.28827166]
[1736697003507,1.07844684,694.92,693.79,0.28827166]
[1736697004612,1.07844684,694.91,693.79,0.28827166]
[1736697005709,1.07844684,694.88,693.79,0.28827166]
[1736697006908,1.07844684,694.86,693.79,0.28827166]
[1736697007613,1.07844684,694.84,693.79,0.28827166]
[1736697008618,1.5038298,695.03,693.79,0.28827166]
[1736697008619,1.07844684,694.85,693.79,0.28827166]
[1736697010214,1.07844684,694.9,693.79,0.28827166]
[1736697011316,1.07844684,694.92,693.79,0.28827166]
[1736697013112,1.07844684,694.93,693.79,0.28827166]
[1736697014015,1.07844684,694.94,693.79,0.28827166]
[1736697014211,0.26469946,694.93,693.79,0.28827166]
[1736697015117,1.07844684,694.94,693.79,0.28827166]
[1736697015316,0.26469939,694.93,693.79,0.28827166]
[1736697015517,1.07844684,694.94,693.79,0.28827166]
[1736697015718,0.26469921,694.93,693.79,0.28827166]
[1736697016118,1.34314605,694.93,693.79,0.28827166]
[1736697016319,0.26469921,694.92,693.79,0.28827166]
[1736697017216,1.34314605,694.92,693.79,0.28827166]
[1736697017422,0.26469921,694.91,693.79,0.28827166]
[1736697017722,0.26469952,694.9,693.79,0.28827166]
[1736697017922,0.26469952,694.89,693.79,0.28827166]
[1736697018221,1.5041873,694.96,693.79,0.28827166]
[1736697018222,1.07844684,694.83,693.79,0.28827166]
[1736697018414,0.26469952,694.82,693.79,0.28827166]
[1736697018919,1.07844684,694.8,693.79,0.28827166]
[1736697019221,0.26469952,694.79,693.79,0.28827166]
[1736697019521,1.07844684,694.8,693.79,0.28827166]
[1736697019921,1.5041873,694.96,693.79,0.28827166]
[1736697019922,1.07844684,694.84,693.79,0.28827166]
[1736697020617,1.07844684,694.85,693.79,0.28827166]
[1736697020815,0.26469442,694.84,693.79,0.28827166]
[1736697021918,0.26469442,694.83,693.79,0.28827166]
[1736697022116,1.07844684,694.86,693.79,0.28827166]
[1736697022424,1.34314354,694.85,693.79,0.28827166]
[1736697022625,0.2646967,694.84,693.79,0.28827166]
[1736697023920,1.07844684,694.85,693.79,0.28827166]
[1736697024426,1.07844684,694.86,693.79,0.28827166]
[1736697025227,1.07844684,694.9,693.79,0.28827166]
[1736697029229,1.34315333,694.89,693.79,0.28827166]
[1736697029429,0.26470649,694.88,693.79,0.28827166]
[1736697030226,1.34315333,694.88,693.79,0.28827166]
[1736697030428,1.07844684,694.88,693.79,0.28827166]
[1736697031228,1.07844684,694.87,693.79,0.28827166]
[1736697032226,1.07844684,694.86,693.79,0.28827166]
[1736697033631,1.07844684,694.84,693.79,0.28827166]
[1736697034733,1.07844684,694.81,693.79,0.28827166]
[1736697035434,0.26472049,694.8,693.79,0.28827166]
[1736697035630,1.07844684,694.77,693.79,0.28827166]
[1736697036433,1.07844684,694.76,693.79,0.28827166]
[1736697037430,1.07844684,694.75,693.79,0.28827166]
[1736697038332,1.07844684,694.72,693.79,0.28827166]
[1736697038837,1.07844684,694.7,693.79,0.28827166]
[1736697040137,1.07844684,694.67,693.79,0.28827166]
[1736697040933,1.07844684,694.64,693.79,0.28827166]
[1736697043039,1.07844684,694.65,693.79,0.28827166]
[1736697045440,1.07844684,694.61,693.79,0.28827166]
[1736697050243,1.07844684,694.62,693.79,0.28827166]
[1736697052944,1.50412771,695.03,693.79,0.28827166]
[1736697052945,1.07844684,694.73,693.79,0.28827166]
[1736697053942,1.07844684,694.8,693.79,0.28827166]
[1736697055041,1.07844684,694.82,693.79,0.28827166]
[1736697055746,1.07844684,694.83,693.79,0.28827166]
[1736697056643,1.07844684,694.85,693.79,0.28827166]
[1736697057546,1.29218808,695.34,693.79,0.28827166]
[1736697057547,1.07844684,694.87,693.79,0.28827166]
[1736697058446,1.50377023,695.19,693.79,0.28827166]
[1736697058447,1.07844684,694.92,693.79,0.28827166]
[1736697059947,1.07844684,694.97,693.79,0.28827166]
[1736697060644,1.07844684,695.05,693.79,0.28827166]
[1736697062349,1.07844684,695.06,693.79,0.28827166]
[1736697063049,1.07844684,695.09,693.79,0.28827166]
[1736697063748,0.26461866,695.08,693.79,0.28827166]
[1736697063949,1.07844684,695.12,693.79,0.28827166]
[1736697064142,0.26461732,695.11,693.79,0.28827166]
[1736697064342,1.07844684,695.12,693.79,0.28827166]
[1736697065145,0.26462421,695.11,693.79,0.28827166]
[1736697065353,0.26462421,695.1,693.79,0.28827166]
[1736697065551,0.26462421,695.09,693.79,0.28827166]
[1736697065753,0.26462421,695.08,693.79,0.28827166]
[1736697066051,0.26461583,695.07,693.79,0.28827166]
[1736697066252,0.26461583,695.06,693.79,0.28827166]
[1736697066552,1.50377023,695.19,693.79,0.28827166]
[1736697066553,0.26461583,695.05,693.79,0.28827166]
[1736697066749,0.26461583,695.09,693.79,0.28827166]
[1736697066949,0.26461583,695.08,693.79,0.28827166]
[1736697067248,0.26461582,695.07,693.79,0.28827166]
[1736697067453,0.26461582,695.06,693.79,0.28827166]
[1736697067753,0.26461582,695.05,693.79,0.28827166]
[1736697067954,0.26461582,695.04,693.79,0.28827166]
[1736697068253,1.07844684,695.12,693.79,0.28827166]
[1736697068448,1.34306041,695.11,693.79,0.28827166]
[1736697068652,0.26461357,695.1,693.79,0.28827166]
[1736697068953,0.26461356,695.09,693.79,0.28827166]
[1736697069152,0.26461356,695.1,693.79,0.28827166]
[1736697069347,1.07844684,695.11,693.79,0.28827166]
[1736697069348,0.26461356,695.09,693.79,0.28827166]
[1736697069548,0.26461356,695.08,693.79,0.28827166]
[1736697069748,0.26461356,695.07,693.79,0.28827166]
[1736697069952,0.26461356,695.06,693.79,0.28827166]
[1736697070152,0.26461356,695.05,693.79,0.28827166]
[1736697070348,0.26461356,695.04,693.79,0.28827166]
[1736697070549,1.07844684,695.13,693.79,0.28827166]
[1736697070751,0.26461,695.12,693.79,0.28827166]
[1736697071451,0.26461,695.11,693.79,0.28827166]
[1736697071652,1.07844684,695.15,693.79,0.28827166]
[1736697071653,0.26460991,695.1,693.79,0.28827166]
[1736697071954,0.26460991,695.09,693.79,0.28827166]
[1736697072153,0.26460991,695.08,693.79,0.28827166]
[1736697072352,0.26460991,695.07,693.79,0.28827166]
[1736697072557,0.26460991,695.06,693.79,0.28827166]
[1736697072755,0.26460991,695.05,693.79,0.28827166]
[1736697072956,0.26460991,695.04,693.79,0.28827166]
[1736697073156,0.26460991,695.03,693.79,0.28827166]
[1736697073458,1.07844684,695.12,693.79,0.28827166]
[1736697073658,0.26460521,695.11,693.79,0.28827166]
[1736697074260,0.26460521,695.1,693.79,0.28827166]
[1736697074458,0.26460521,695.09,693.79,0.28827166]
[1736697074662,0.26460521,695.08,693.79,0.28827166]
[1736697074961,0.26460521,695.07,693.79,0.28827166]
[1736697075161,0.26460521,695.06,693.79,0.28827166]
[1736697075362,0.26460521,695.05,693.79,0.28827166]
[1736697075562,1.07844684,695.13,693.79,0.28827166]
[1736697076061,1.50377023,695.19,693.79,0.28827166]
[1736697076263,0.26459302,695.18,693.79,0.28827166]
[1736697077065,1.50377023,695.19,693.79,0.28827166]
[1736697077264,0.26459066,695.18,693.79,0.28827166]
[1736697078159,1.07844684,695.24,693.79,0.28827166]
[1736697078464,0.26457649,695.23,693.79,0.28827166]
[1736697079665,1.07844684,695.26,693.79,0.28827166]
[1736697079869,0.26459113,695.25,693.79,0.28827166]
[1736697080066,1.07844684,695.23,693.79,0.28827166]
[1736697080270,0.26459113,695.22,693.79,0.28827166]
[1736697081170,0.26459113,695.21,693.79,0.28827166]
[1736697081369,0.26459113,695.2,693.79,0.28827166]
[1736697081569,0.26459113,695.19,693.79,0.28827166]
[1736697081771,1.50354283,695.3,693.79,0.28827166]
[1736697081772,0.26458542,695.18,693.79,0.28827166]
[1736697081967,1.07844684,695.23,693.79,0.28827166]
[1736697082274,0.2645871,695.22,693.79,0.28827166]
[1736697083272,0.26458783,695.21,693.79,0.28827166]
[1736697084270,1.07844684,695.19,693.79,0.28827166]
[1736697084473,0.26458783,695.18,693.79,0.28827166]
[1736697085276,1.34302904,695.17,693.79,0.28827166]
[1736697085573,0.2645822,695.16,693.79,0.28827166]
[1736697086274,1.07844684,695.12,693.79,0.28827166]
[1736697086474,0.2645822,695.11,693.79,0.28827166]
[1736697087280,1.07844684,695.1,693.79,0.28827166]
[1736697088073,1.07844684,695.08,693.79,0.28827166]
[1736697088674,1.07844684,695.06,693.79,0.28827166]
[1736697089577,1.07844684,695.08,693.79,0.28827166]
[1736697090482,1.07844684,695.06,693.79,0.28827166]
[1736697091379,1.07844684,695.08,693.79,0.28827166]
[1736697092684,1.07844684,695.07,693.79,0.28827166]
[1736697093584,1.0768234,695.27,693.79,0.28827166]
[1736697093585,1.07844684,695.02,693.79,0.28827166]
[1736697094982,1.07844684,695.01,693.79,0.28827166]
[1736697099288,1.07844684,695.0,693.79,0.28827166]
[1736697100883,1.07844684,694.99,693.79,0.28827166]
[1736697101588,1.07844684,694.98,693.79,0.28827166]
[1736697102688,1.07844684,694.97,693.79,0.28827166]
[1736697104684,1.07844684,695.1,693.79,0.28827166]
[1736697106184,1.07844684,695.13,693.79,0.28827166]
[1736697106784,1.07844684,695.14,693.79,0.28827166]
[1736697107787,1.07844684,695.1,693.79,0.28827166]
[1736697108683,1.07844684,695.11,693.79,0.28827166]
[1736697109489,1.07844684,695.12,693.79,0.28827166]
[1736697111893,1.36445661,695.33,693.79,0.28827166]
[1736697111894,1.07844684,695.1,693.79,0.28827166]
[1736697113195,1.07844684,695.13,693.79,0.28827166]
[1736697114193,1.07844684,695.18,693.79,0.28827166]
[1736697115296,0.28763321,695.33,693.79,0.28827166]
[1736697128601,2.58141066,695.53,693.79,0.28827166]
[1736697128798,0.26445725,695.52,693.79,0.28827166]
[1736697131203,0.26446441,695.51,693.79,0.28827166]
[1736697131403,0.26446441,695.5,693.79,0.28827166]
[1736697131706,0.26446441,695.49,693.79,0.28827166]
[1736697131903,0.26446441,695.48,693.79,0.28827166]
[1736697132099,1.50296382,695.53,693.79,0.28827166]
[1736697132100,0.26446441,695.47,693.79,0.28827166]
[1736697132305,0.26446441,695.46,693.79,1.57271808]
[1736697132508,0.26446441,695.45,693.79,1.57271808]
[1736697132802,1.07844684,695.48,693.79,1.57271808]
[1736697132803,0.26446441,695.44,693.79,1.57271808]
[1736697133002,0.26446441,695.43,693.79,1.57271808]
[1736697133205,0.26446501,695.42,693.79,4.32670045]
[1736697133406,0.26446501,695.41,693.8,2.75398237]
[1736697133603,0.26446501,695.4,693.82,0.2882592]
[1736697133802,0.26446501,695.39,693.82,0.2882592]
[1736697133999,0.26446501,695.38,693.82,0.2882592]
[1736697134199,1.07844684,695.47,693.82,0.2882592]
[1736697134499,1.50296382,695.53,693.82,0.2882592]
[1736697134500,1.34291413,695.46,693.82,0.2882592]
[1736697134704,0.26446729,695.45,693.82,0.2882592]
[1736697135004,0.26446729,695.45,693.82,3.04224157]
[1736697136400,1.34291413,695.45,693.83,2.97626803]
[1736697136700,0.26446729,695.44,693.83,2.97626803]
[1736697137507,1.07844684,695.47,693.83,2.97626803]
[1736697137707,0.26449738,695.46,693.83,2.97626803]
[1736697137908,0.26449738,695.46,693.82,0.2882592]
[1736697138109,1.34294422,695.46,693.82,0.2882592]
[1736697138307,0.26449738,695.45,693.82,0.2882592]
[1736697138509,1.07844684,695.46,693.82,0.2882592]
[1736697138809,0.26450173,695.45,693.82,0.2882592]
[1736697139011,1.07844684,695.43,693.82,0.2882592]
[1736697139809,1.50305037,695.46,693.82,0.2882592]
[1736697139810,1.07844684,695.42,693.82,0.2882592]
[1736697140913,1.50305037,695.46,693.82,0.2882592]
[1736697140914,1.07844684,695.41,693.82,0.2882592]
[1736697141410,0.26451471,695.4,693.82,0.2882592]
[1736697141806,1.07844684,695.38,693.82,0.2882592]
[1736697142013,0.26451471,695.37,693.82,0.2882592]
[1736697142514,1.07844684,695.3,693.82,0.2882592]
[1736697143707,1.07844684,695.28,693.82,0.2882592]
[1736697143912,0.26456727,695.27,693.82,0.2882592]
[1736697144612,1.07844684,695.14,693.82,0.2882592]
[1736697145912,1.07844684,695.15,693.82,0.2882592]
[1736697146516,1.07844684,695.18,693.82,0.2882592]
[1736697146814,0.26456772,695.17,693.82,0.2882592]
[1736697147415,1.07844684,695.18,693.82,0.2882592]
[1736697147616,0.2645677,695.17,693.82,0.2882592]
[1736697148215,1.07844684,695.19,693.82,0.2882592]
[1736697148518,0.26456779,695.18,693.82,0.2882592]